bitfinex/quotes_ETHUSD_20241223
["timestamp","ask_amount","ask_price","bid_price","bid_amount"]
[1734993907038,0.797,3444.7,3443.8,9.91096158]
[1734993907737,0.797,3444.7,3443.9,3.45367]
[1734993908572,0.797,3444.7,3444.0,2.90359]
[1734993911493,0.797,3444.7,3443.9,0.55]
[1734993911702,0.797,3444.7,3443.9,1.36350174]
[1734993912406,0.797,3444.7,3443.9,4.26718174]
[1734993914704,2.42551009,3445.7,3443.9,4.26718174]
[1734993914705,3.6702,3445.1,3444.0,0.7908]
[1734993914860,0.7675,3445.1,3444.2,2.90338]
[1734993915060,0.7675,3445.1,3444.2,8.71028]
[1734993915262,0.7675,3445.1,3444.3,0.60725221]
[1734993915657,3.67019,3445.1,3444.3,0.60725221]
[1734993915857,3.67019,3445.1,3444.3,6.41395221]
[1734993924723,3.67019,3445.1,3444.3,5.8067]
[1734993927334,0.8328,3445.0,3444.3,5.8067]
[1734993933253,2.66592561,3444.9,3444.3,5.8067]
[1734993934716,2.66592561,3444.8,3444.3,5.8067]
[1734993936024,1.21802393,3444.7,3444.3,5.8067]
[1734993936736,0.7757,3444.6,3444.3,5.8067]
[1734993937659,3.44162561,3444.6,3444.3,5.8067]
[1734993938570,0.7757,3444.6,3444.3,5.8067]
[1734993940686,1.21802393,3444.7,3444.3,5.8067]
[1734993940983,1.21802393,3444.6,3444.3,5.8067]
[1734993941474,0.7757,3444.5,3444.3,5.8067]
[1734993943038,1.21802393,3444.6,3444.3,5.8067]
[1734993943590,2.67019662,3444.4,3444.3,5.8067]
[1734993944987,1.21802393,3444.4,3444.3,5.8067]
[1734993946042,3.88822056,3444.4,3444.3,5.8067]
[1734993947138,5.62848383,3444.4,3444.3,5.8067]
[1734993947560,8.53174383,3444.4,3444.3,5.8067]
[1734993948853,12.62619898,3444.4,3444.3,5.8067]
[1734993949073,12.52586469,3444.4,3444.3,5.8067]
[1734993950914,12.52586469,3444.4,3444.3,2e-05]
[1734993951118,14.94673152,3444.4,3444.3,2e-05]
[1734993951907,2.90402,3443.6,3442.9,1.09445515]
[1734993952065,0.7979,3443.4,3442.9,1.09445515]
[1734993952571,0.7979,3443.4,3442.7,1.84985515]
[1734993953101,0.03630518,3443.3,3442.7,1.84985515]
[1734993953295,2.70688065,3443.3,3442.7,1.84985515]
[1734993953982,2.70688065,3443.3,3442.7,1.09445515]
[1734993954183,6.67839469,3443.3,3442.5,1.85635515]
[1734993954388,6.64208951,3443.3,3442.5,1.85635515]
[1734993954621,0.03630825,3443.2,3442.5,1.85635515]
[1734993954820,5.18991682,3443.3,3442.5,1.85635515]
[1734993954821,4.12259278,3443.3,3442.5,1.85635515]
[1734993955617,3.70217,3443.2,3442.4,0.59560136]
[1734993955921,0.7979,3443.2,3442.6,1.09445515]
[1734993956119,0.83420824,3443.2,3442.6,1.09445515]
[1734993956272,1.51264276,3443.2,3442.4,0.59560136]
[1734993956479,4.51264276,3443.2,3442.4,0.59560136]
[1734993956877,3.83420824,3443.2,3442.4,0.59560136]
[1734993958129,3.70219,3443.2,3442.4,0.59560136]
[1734993958419,0.7979,3443.2,3442.4,0.59560136]
[1734993958577,2.94067018,3443.1,3442.4,0.005]
[1734993960540,2.90436,3443.1,3442.4,0.005]
[1734993960855,3.70005736,3443.1,3442.4,0.005]
[1734993961530,0.7979,3443.0,3442.4,0.005]
[1734993962435,5.90455,3442.9,3442.4,0.005]
[1734993965942,0.03631143,3442.8,3442.4,0.005]
[1734993966330,2.94094143,3442.8,3442.4,0.005]
[1734993966504,3.69439531,3442.8,3442.4,0.005]
[1734993966706,3.65808388,3442.8,3442.4,0.005]
[1734993967231,0.764,3442.7,3442.4,0.005]
[1734993969536,0.0363132,3442.6,3442.4,0.005]
[1734993970433,0.764,3442.7,3442.4,0.005]
[1734993970633,1.50983971,3442.7,3442.4,0.005]
[1734993971368,0.0363132,3442.6,3442.4,0.005]
[1734993971516,2.90486,3442.5,3442.4,0.005]
[1734993972928,3.70517613,3442.5,3442.4,0.005]
[1734993974046,3.66886,3442.5,3442.4,0.005]
[1734993974363,4.43928843,3442.5,3442.4,0.005]
[1734993974573,1.98240278,3443.2,3442.4,0.005]
[1734993974869,1.82760418,3443.2,3443.1,4.54880515]
[1734993975044,1.82760418,3443.2,3443.1,5.33470515]
[1734993975245,1.82760418,3443.2,3443.1,5.86817567]
[1734993976173,1.82760418,3443.2,3443.1,4.77372052]
[1734993976568,1.21224912,3444.7,3443.8,0.7859]
[1734993976775,1.21224912,3444.7,3443.1,1.08347052]
[1734993976776,1.21224912,3444.7,3444.0,0.7859]
[1734993976919,1.21224912,3444.7,3444.1,0.55]
[1734993977120,1.21224912,3444.7,3444.4,0.7859]
[1734993977362,1.21224912,3444.7,3444.4,1.154824]
[1734993977562,1.21224912,3445.3,3444.5,0.55]
[1734993977765,1.21224912,3445.3,3444.7,0.55]
[1734993978277,1.21224912,3445.3,3445.1,0.7859]
[1734993978477,1.21224912,3445.3,3445.2,0.55]
[1734993978766,1.21224912,3445.3,3445.2,3.876436]
[1734993979357,1.21224912,3445.3,3445.2,4.662336]
[1734993979541,1.21224912,3446.1,3445.6,2.90225]
[1734993979752,1.21224912,3446.1,3445.7,0.55]
[1734993980146,1.21224912,3446.1,3445.8,0.7859]
[1734993980683,1.21224912,3446.1,3445.7,0.55]
[1734993980832,0.54766589,3446.1,3445.3,0.7859]
[1734993981479,3.44951589,3446.1,3445.3,0.7859]
[1734993983689,0.54766589,3446.1,3445.3,0.7859]
[1734993983831,3.66569,3446.3,3445.3,0.7859]
[1734993984035,2.90176,3446.2,3445.3,0.7859]
[1734993984831,6.49710522,3446.5,3445.4,0.55]
[1734993986286,3.0,3446.3,3445.4,6.3539]
[1734993986788,3.0,3446.3,3445.4,5.8039]
[1734993986941,6.23797415,3446.3,3445.4,5.8039]
[1734993987144,6.2017,3446.3,3445.4,5.8039]
[1734993989144,2.9018,3446.2,3445.4,5.8039]
[1734993989885,2.9018,3446.2,3445.5,0.8175]
[1734993990188,2.9018,3446.2,3445.5,6.6222]
[1734993993039,2.9018,3446.2,3445.6,0.8175]
[1734993993245,2.9018,3446.2,3445.6,6.622]
[1734993997914,3.0,3446.5,3445.6,6.622]
[1734993998267,2.90186,3446.1,3445.6,6.622]
[1734994002813,2.90186,3446.1,3445.7,0.7567]
[1734994003019,2.90169,3446.3,3445.7,6.561]
[1734994003522,0.59098602,3446.6,3445.7,7.2171]
[1734994003678,2.90151,3446.5,3445.7,7.2171]
[1734994005401,2.90158,3446.4,3445.7,7.2171]
[1734994007696,2.90141,3446.6,3445.8,0.7567]
[1734994007901,2.90141,3446.6,3445.8,6.5609]
[1734994008102,2.90141,3446.6,3445.9,0.65681501]
[1734994008299,2.90141,3446.6,3445.9,6.46081501]
[1734994010935,3.0,3447.0,3446.0,0.7567]
[1734994011229,3.0,3446.7,3446.1,0.8021]
[1734994011535,3.0,3446.7,3446.1,6.6058]
[1734994012137,2.90099,3447.1,3446.1,6.6058]
[1734994012318,3.0,3446.7,3446.1,6.6058]
[1734994012988,3.0,3447.0,3446.1,6.6058]
[1734994013333,2.90133,3446.7,3446.1,6.6058]
[1734994015215,3.0,3447.0,3446.1,6.6058]
[1734994015414,2.90142,3446.6,3446.1,6.6058]
[1734994015742,2.90142,3446.6,3446.2,0.53347052]
[1734994015948,2.90142,3446.6,3446.2,6.33697052]
[1734994022903,1.35210733,3446.5,3446.2,6.33697052]
[1734994023318,1.35210733,3446.5,3446.2,5.8035]
[1734994024320,1.21224912,3446.3,3446.2,5.8035]
[1734994025452,1.82760418,3446.4,3446.2,5.8035]
[1734994027552,1.82760418,3446.4,3446.3,0.789]
[1734994030708,1.82760418,3446.4,3446.2,5.8035]
[1734994034568,1.21913129,3446.3,3446.2,5.8035]
[1734994035547,2.57123862,3446.3,3446.2,5.8035]
[1734994036690,1.21913129,3446.3,3446.2,5.8035]
[1734994037598,2.57123862,3446.3,3446.2,5.8035]
[1734994039067,1.21913129,3446.3,3446.2,5.8035]
[1734994040300,2.57123862,3446.3,3446.2,5.8035]
[1734994041258,1.21913129,3446.3,3446.2,5.8035]
[1734994042469,2.57123862,3446.3,3446.2,5.8035]
[1734994042678,3.25480346,3446.3,3446.2,5.8035]
[1734994044877,3.86327635,3446.3,3446.2,5.8035]
[1734994045212,6.76493635,3446.3,3446.2,5.8035]
[1734994045358,7.57213635,3446.3,3446.2,5.8035]
[1734994045564,10.57213635,3446.3,3446.2,1.45089]
[1734994045792,3.7097,3445.3,3445.2,1.20016011]
[1734994045973,3.7097,3445.3,3445.2,7.00526011]
[1734994046605,2.90258,3445.2,3445.1,1.54895028]
[1734994046908,6.70978,3445.2,3445.1,1.54895028]
[1734994047106,7.7803513,3445.2,3445.1,1.54895028]
[1734994047517,2.90275,3445.0,3444.9,5.1e-07]
[1734994047812,9.16001722,3445.2,3443.5,0.58004477]
[1734994047813,0.8072,3444.8,3443.5,0.58004477]
[1734994047966,2.90353,3444.1,3443.5,0.58004477]
[1734994048173,0.8072,3444.2,3443.5,0.58004477]
[1734994048566,2.90368,3443.9,3443.4,2.41635263]
[1734994049072,3.04600697,3443.7,3443.3,0.8028]
[1734994050210,1.21583683,3443.4,3443.3,0.8028]
[1734994050531,1.21583683,3443.4,3442.7,2.42667367]
[1734994050532,1.21583683,3443.4,3443.0,0.8028]
[1734994050887,2.22316709,3443.6,3443.0,0.8028]
[1734994051087,2.87102669,3443.6,3443.0,0.8028]
[1734994051707,5.77496669,3443.6,3442.8,0.5929254]
[1734994052053,1.21583683,3443.2,3442.8,0.5929254]
[1734994052657,4.12004683,3443.3,3442.8,0.5929254]
[1734994053323,4.12004683,3443.3,3442.4,3.8078]
[1734994053324,0.8072,3442.9,3442.4,0.005]
[1734994053654,2.90486,3442.5,3442.4,0.005]
[1734994053810,3.74837916,3442.5,3442.4,0.005]
[1734994054211,3.71206,3442.5,3442.4,0.005]
[1734994054947,8.23104593,3442.5,3442.4,0.005]
[1734994055105,2.90505,3442.3,3441.9,0.1703435]
[1734994059332,3.71212,3442.5,3441.9,0.1703435]
[1734994059527,2.90497,3442.4,3441.9,0.1703435]
[1734994060776,2.90505,3442.3,3441.9,0.1703435]
[1734994062172,2.94142904,3442.2,3441.3,0.8028]
[1734994063668,0.7613,3442.1,3441.1,2.90599]
[1734994063853,0.7613,3442.1,3441.2,0.369189]
[1734994066245,0.7613,3442.1,3441.0,0.7859]
[1734994066246,0.7613,3442.1,3441.0,3.7859]
[1734994067078,0.7613,3442.1,3441.1,2.42667367]
[1734994067383,0.7613,3442.1,3441.0,3.69196]
[1734994067884,0.7613,3442.5,3441.5,0.7859]
[1734994068049,1.97059499,3442.8,3441.5,0.7859]
[1734994068379,0.7613,3442.8,3442.1,3.69103]
[1734994068547,1.20929499,3442.9,3441.8,0.55]
[1734994068747,1.20929499,3442.9,3442.5,0.7859]
[1734994068965,1.20929499,3442.9,3442.6,2.90477]
[1734994069165,1.20929499,3442.9,3442.6,3.273837]
[1734994069373,0.7613,3443.4,3442.6,3.273837]
[1734994070062,0.7613,3443.4,3442.6,9.082737]
[1734994070378,0.7613,3444.1,3442.7,0.7859]
[1734994070586,0.23336408,3444.0,3442.7,1.4822867]
[1734994070877,2.90377,3443.8,3442.7,10.1962967]
[1734994071077,3.1006795,3444.0,3442.9,2.90452]
[1734994071402,2.90362,3444.0,3442.9,2.90452]
[1734994071592,2.90362,3444.0,3443.0,0.41178283]
[1734994071888,0.7613,3444.1,3443.0,3.31621283]
[1734994072255,3.7613,3444.1,3443.0,9.12511283]
[1734994072956,3.0,3444.0,3443.0,6.96902559]
[1734994073172,3.0,3444.0,3443.0,5.8089]
[1734994073376,3.0,3444.0,3443.0,6.178069]
[1734994073984,3.0,3444.0,3443.0,9.082499]
[1734994074483,0.7613,3444.1,3443.1,2.90432]
[1734994074681,0.7613,3444.1,3443.1,8.71302]
[1734994075040,0.7613,3444.1,3443.1,5.8087]
[1734994075235,2.9036,3444.0,3443.1,5.8087]
[1734994075490,0.37011992,3443.9,3443.1,5.8087]
[1734994080089,0.7613,3444.1,3443.1,8.71304]
[1734994081291,0.7613,3444.1,3443.1,5.8087]
[1734994081523,0.7613,3444.1,3443.3,2.90417]
[1734994081694,0.7613,3444.1,3443.3,8.71257]
[1734994086387,1.20929499,3444.3,3443.5,2.90402]
[1734994086689,1.20929499,3444.2,3443.5,8.71202]
[1734994087959,1.20929499,3444.2,3443.5,5.808]
[1734994088161,0.99858453,3444.2,3443.5,5.808]
[1734994088562,3.99858453,3444.2,3443.5,5.808]
[1734994089165,1.20929499,3444.0,3443.5,5.808]
[1734994089477,2.62699438,3444.0,3443.5,5.808]
[1734994090577,1.20929499,3443.8,3443.5,5.808]
[1734994091852,2.49879841,3443.9,3443.5,5.808]
[1734994091853,1.20929499,3443.7,3443.5,5.808]
[1734994092149,1.20929499,3443.7,3443.5,5.39846717]
[1734994092692,1.20929499,3443.6,3443.5,5.39846717]
[1734994093801,2.81455612,3443.7,3443.5,5.39846717]
[1734994094206,2.81455612,3443.7,3443.5,3.24250422]
[1734994096305,1.21367671,3443.7,3443.5,3.24250422]
[1734994097577,1.50021388,3443.6,3443.5,6.14652422]
[1734994098207,1.50021388,3443.6,3443.5,3.24250422]
[1734994098705,1.21367671,3443.7,3443.5,6.14652422]
[1734994099003,1.21367671,3443.7,3443.6,3.65973]
[1734994099178,1.21367671,3443.7,3443.6,12.03313]
[1734994100162,2.21226124,3444.1,3443.9,2.90361]
[1734994100392,2.21226124,3444.1,3443.9,11.27651]
[1734994101102,2.21226124,3444.1,3444.0,2.9036]
[1734994101276,2.21226124,3444.1,3444.0,12.0448]
[1734994101607,0.99858453,3444.1,3444.0,12.0448]
[1734994103310,3.0,3444.3,3444.0,12.0448]
[1734994103512,4.21367671,3444.4,3444.0,12.0448]
[1734994103681,4.21367671,3444.4,3444.0,9.1412]
[1734994104278,4.21367671,3444.5,3444.0,9.1412]
[1734994105615,3.0,3444.3,3444.0,9.1412]
[1734994106110,3.0,3444.3,3444.0,12.04478]
[1734994106463,1.21367671,3444.4,3444.0,12.04478]
[1734994107298,1.21367671,3444.4,3444.0,9.1412]
[1734994107826,3.0,3444.5,3444.0,9.1412]
[1734994108023,4.21367671,3444.6,3444.0,9.1412]
[1734994108989,3.0,3444.3,3444.0,9.1412]
[1734994109832,1.21367671,3444.4,3444.0,9.1412]
[1734994110230,1.21367671,3444.4,3444.3,0.7685]
[1734994110417,1.21367671,3444.4,3444.3,12.59404]
[1734994110955,1.81597159,3444.5,3444.4,3.45326]
[1734994111132,1.81597159,3444.5,3444.4,12.59376]
[1734994112136,1.52039074,3444.5,3444.4,15.59376]
[1734994112456,1.52039074,3444.5,3444.4,16.28873242]
[1734994112665,4.24512596,3445.5,3444.4,16.28873242]
[1734994112666,1.21444885,3445.2,3444.8,0.55]
[1734994112869,1.21444885,3445.2,3444.9,0.7685]
[1734994113034,1.21444885,3445.2,3445.0,0.7685]
[1734994113361,1.21444885,3445.2,3445.1,0.73965028]
[1734994113652,1.21444885,3445.2,3445.1,9.11045028]
[1734994113835,5.05440175,3445.7,3445.1,9.11045028]
[1734994113836,1.21444885,3445.7,3445.1,9.11045028]
[1734994114955,1.21444885,3445.7,3445.2,0.02902185]
[1734994115155,1.21444885,3445.7,3445.4,0.7685]
[1734994115363,1.21444885,3445.7,3445.4,9.1388]
[1734994117261,1.50665848,3445.9,3445.4,9.1388]
[1734994117422,0.7995,3445.8,3445.4,8.3703]
[1734994117909,1.50665848,3445.9,3445.4,8.3703]
[1734994118556,1.50665848,3445.7,3445.4,8.3703]
[1734994119854,1.21444885,3446.1,3445.4,8.3703]
[1734994120059,1.21444885,3446.1,3445.5,0.83]
[1734994120219,1.21444885,3446.1,3445.5,9.2002]
[1734994121471,1.21444885,3446.2,3445.5,12.10252]
[1734994122386,1.21444885,3446.2,3445.6,0.83]
[1734994122696,5.94734697,3446.7,3445.6,12.10221]
[1734994122697,1.21444885,3446.3,3445.6,12.10221]
[1734994123261,1.21444885,3446.3,3445.6,9.2]
[1734994123979,2.90152,3446.5,3445.6,9.2]
[1734994123980,4.11596885,3446.5,3445.6,9.2]
[1734994124377,4.11596885,3446.5,3445.6,8.37]
[1734994124683,4.11596885,3446.5,3445.7,1.707638]
[1734994124866,2.90152,3446.5,3445.7,10.077438]
[1734994125480,2.90152,3446.5,3445.8,0.57243893]
[1734994125686,2.90152,3446.5,3445.8,8.94213893]
[1734994129218,2.90133,3446.7,3445.8,8.94213893]
[1734994129513,2.90133,3446.7,3445.9,0.3073847]
[1734994129713,2.90133,3446.7,3445.9,8.6768847]
[1734994131913,0.7995,3446.8,3446.0,0.7601]
[1734994132121,1.21444885,3446.9,3446.0,9.1294]
[1734994132470,1.21444885,3446.9,3446.0,12.03124]
[1734994132671,1.21444885,3446.9,3446.1,1.127238]
[1734994132868,1.21444885,3446.9,3446.1,9.496438]
[1734994133099,1.21444885,3446.9,3446.1,12.398238]
[1734994133612,0.7807,3447.1,3446.2,3.66183]
[1734994133812,0.7807,3447.1,3446.2,9.1291]
[1734994134014,0.7807,3447.1,3446.4,2.90156]
[1734994134222,0.7807,3447.1,3446.4,11.27026]
[1734994134397,4.99514885,3447.2,3446.4,11.27026]
[1734994135112,3.7807,3447.2,3446.4,11.27026]
[1734994135572,0.7807,3447.2,3446.4,11.27026]
[1734994139617,4.11521885,3447.4,3446.6,0.7601]
[1734994139827,4.11521885,3447.4,3446.6,9.1284]
[1734994140116,1.21444885,3447.4,3446.6,9.1284]
[1734994140621,1.21444885,3447.4,3446.6,12.02977]
[1734994140974,4.21444885,3447.5,3446.6,12.02977]
[1734994141173,4.21444885,3447.5,3446.6,12.3371547]
[1734994142291,2.7149982,3447.4,3446.6,12.3371547]
[1734994143381,1.21444885,3447.4,3446.6,12.3371547]
[1734994146879,2.71637386,3447.3,3446.6,12.3371547]
[1734994147778,2.71637386,3447.3,3446.9,0.8151]
[1734994147977,1.21444885,3447.3,3447.1,0.8151]
[1734994148185,1.21444885,3447.3,3447.2,1.127238]
[1734994148384,1.21444885,3447.3,3447.2,9.494538]
[1734994149013,3.04600697,3447.8,3447.2,9.494538]
[1734994149014,1.50213548,3447.8,3447.2,9.494538]
[1734994149217,1.50213548,3447.8,3447.5,2.90064]
[1734994149526,1.50213548,3447.8,3447.6,1.105164]
[1734994149691,1.50213548,3447.8,3447.6,9.471764]
[1734994151123,1.21444885,3448.3,3447.6,9.471764]
[1734994152113,2.71672491,3448.2,3447.6,9.471764]
[1734994152429,2.71672491,3448.2,3447.6,9.1817]
[1734994152604,2.71672491,3448.2,3447.8,0.8151]
[1734994152932,2.71672491,3448.2,3447.8,9.1814]
[1734994153129,1.21444885,3448.2,3447.8,9.1814]
[1734994154408,1.21444885,3448.2,3447.9,0.8151]
[1734994154728,1.21444885,3448.6,3447.9,9.1812]
[1734994155612,1.50239399,3448.5,3447.9,9.1812]
[1734994156186,1.50239399,3448.5,3448.0,0.8151]
[1734994156437,1.50239399,3448.5,3448.0,9.1811]
[1734994157141,1.50239399,3448.5,3448.2,3.71515]
[1734994157305,1.50239399,3448.5,3448.2,12.08075]
[1734994157850,1.50239399,3448.5,3448.3,0.8151]
[1734994158074,1.50239399,3448.5,3448.3,6.1806]
[1734994159359,1.21444885,3449.0,3448.3,6.1806]
[1734994160017,1.21444885,3449.0,3448.4,0.55]
[1734994160205,1.21444885,3449.0,3448.4,11.1]
[1734994160616,1.21444885,3449.1,3448.4,11.1]
[1734994161252,1.21444885,3449.1,3449.0,3.39147367]
[1734994161421,1.21444885,3449.1,3449.0,16.83986367]
[1734994161939,1.21444885,3449.8,3449.5,2.89897]
[1734994162143,1.21444885,3449.8,3449.6,0.4148]
[1734994162314,1.21444885,3449.8,3449.6,10.9628]
[1734994163610,2.89832,3450.3,3449.6,10.548]
[1734994163913,0.7579,3450.1,3449.6,10.548]
[1734994164223,0.7579,3449.7,3449.6,10.548]
[1734994164429,2.89878,3449.8,3449.6,10.548]
[1734994164627,2.8988,3449.7,3449.6,10.548]
[1734994164834,3.6567,3449.7,3449.6,10.548]
[1734994165034,4.312229,3449.7,3449.6,10.548]
[1734994166339,4.312229,3449.7,3449.6,7.31910916]
[1734994168017,7.312229,3449.7,3449.6,7.31910916]
[1734994168833,10.02470639,3449.7,3449.6,7.31910916]
[1734994169592,10.02470639,3449.7,3449.6,9.16e-06]
[1734994170168,10.62846337,3449.7,3449.6,9.16e-06]
[1734994170955,2.89952,3448.9,3448.2,0.4148]
[1734994173082,0.7579,3449.0,3448.2,0.4148]
[1734994173273,0.7579,3449.0,3448.2,6.2142]
[1734994173470,0.7579,3449.0,3448.2,7.1823517]
[1734994174489,0.7579,3449.3,3448.3,3.44997]
[1734994174654,0.7579,3449.3,3448.3,9.24997]
[1734994175299,0.7579,3449.3,3448.5,0.55]
[1734994175604,0.7579,3449.3,3448.5,6.3496]
[1734994175804,0.7579,3449.3,3448.5,6.816071]
[1734994175955,0.7579,3449.3,3448.5,9.715861]
[1734994176905,0.7579,3449.3,3448.6,0.4148]
[1734994177201,1.20813222,3449.5,3448.6,6.2143]
[1734994177389,1.20813222,3449.5,3448.8,2.89955]
[1734994177583,1.20813222,3449.5,3448.9,0.911385]
[1734994177785,1.20813222,3449.5,3448.9,6.710285]
[1734994178160,1.20813222,3449.5,3448.9,5.7989]
[1734994178592,0.7688,3449.9,3449.0,0.4148]
[1734994179655,4.97693222,3450.1,3449.0,0.4148]
[1734994179900,1.20813222,3450.0,3449.1,0.55]
[1734994180104,1.20813222,3450.0,3449.2,0.67637]
[1734994180400,1.20813222,3450.0,3449.2,6.47477]
[1734994180804,2.7083275,3450.0,3449.2,6.47477]
[1734994181202,2.7083275,3450.0,3449.3,0.4148]
[1734994182704,2.7083275,3450.0,3449.3,6.2131]
[1734994185372,2.7083275,3450.0,3449.3,6.9713527]
[1734994185576,1.20813222,3450.0,3449.3,6.9713527]
[1734994186625,1.20813222,3450.0,3449.4,0.55]
[1734994186779,1.20813222,3450.0,3449.4,6.3481]
[1734994187117,1.20813222,3450.0,3449.5,0.4148]
[1734994187293,1.20813222,3450.0,3449.5,6.2127]
[1734994188830,1.50019528,3450.2,3449.5,6.2127]
[1734994190127,1.50019528,3450.2,3449.7,0.4148]
[1734994190437,1.20813222,3450.3,3449.8,0.55]
[1734994190605,1.20813222,3450.3,3449.8,6.3474]
[1734994191496,2.7083275,3450.5,3449.8,6.3474]
[1734994192027,2.7083275,3450.5,3449.9,0.4148]
[1734994192228,0.45205258,3450.4,3449.9,5.7973]
[1734994192436,2.7083275,3450.5,3449.9,5.7973]
[1734994193005,1.20813222,3450.5,3449.9,5.7973]
[1734994193508,1.20813222,3450.5,3450.0,0.55]
[1734994193908,1.20813222,3450.5,3450.0,6.3471]
[1734994195015,3.31239361,3450.7,3450.0,6.3471]
[1734994195016,1.20813222,3450.6,3450.0,6.3471]
[1734994197606,1.20813222,3450.6,3450.1,0.4148]
[1734994197807,1.20813222,3450.6,3450.1,6.2117]
[1734994198520,1.20813222,3450.5,3450.1,6.2117]
[1734994200445,1.20813222,3450.5,3450.2,0.55]
[1734994200621,1.20813222,3450.5,3450.2,6.3468]
[1734994203845,1.20813222,3450.8,3450.2,6.3468]
[1734994204758,1.20813222,3450.9,3450.2,6.3468]
[1734994204915,1.20813222,3450.9,3450.4,0.55]
[1734994205118,1.20813222,3450.9,3450.4,7.1048527]
[1734994205827,1.20813222,3450.9,3450.6,0.55]
[1734994206031,1.20813222,3451.0,3450.6,6.3461]
[1734994207276,1.20813222,3451.1,3450.6,6.3461]
[1734994210577,1.20813222,3451.2,3450.6,6.3461]
[1734994210849,1.20813222,3451.2,3450.7,0.4148]
[1734994211190,1.20813222,3451.2,3450.7,6.2107]
[1734994211548,1.20813222,3451.3,3450.7,6.2107]
[1734994212796,1.33906592,3451.4,3450.7,6.2107]
[1734994213585,1.33906592,3451.4,3450.7,6.9691527]
[1734994214967,1.33906592,3451.4,3450.8,0.4148]
[1734994215286,1.33906592,3451.4,3450.8,6.2106]
[1734994218257,1.50248183,3451.3,3450.8,6.2106]
[1734994219373,1.33906592,3451.4,3450.8,6.2106]
[1734994219587,1.33906592,3451.4,3450.8,6.88677]
[1734994221074,1.20813222,3451.3,3450.8,6.88677]
[1734994221892,2.71184488,3451.3,3450.8,6.88677]
[1734994223186,1.20813222,3451.2,3450.8,6.88677]
[1734994227404,1.20813222,3451.2,3450.8,6.2106]
[1734994227607,1.20813222,3451.1,3450.8,6.2106]
[1734994229504,1.20813222,3451.1,3450.9,0.55]
[1734994229840,1.20813222,3451.1,3450.9,6.3456]
[1734994231049,1.20813222,3451.1,3450.9,7.02164]
[1734994231252,1.20813222,3451.1,3450.9,6.3456]
[1734994232754,2.13758022,3451.4,3450.9,6.3456]
[1734994233614,2.13758022,3451.4,3451.0,0.4148]
[1734994233810,2.13758022,3451.4,3451.1,0.55]
[1734994234011,2.13758022,3451.4,3451.1,6.3453]
[1734994237666,2.13758022,3451.4,3451.1,7.02131]
[1734994240779,2.13758022,3451.4,3451.1,7.61518884]
[1734994241637,2.72484818,3451.3,3451.1,7.61518884]
[1734994242785,1.3472141,3451.4,3451.1,7.61518884]
[1734994243778,1.2162804,3451.3,3451.1,7.61518884]
[1734994244091,1.2162804,3451.3,3451.2,1.3086127]
[1734994244238,1.2162804,3451.3,3451.2,7.1037127]
[1734994246215,2.72469932,3451.3,3451.2,7.1037127]
[1734994248029,1.50841892,3451.3,3451.2,7.1037127]
[1734994249126,3.50899932,3451.3,3451.2,7.1037127]
[1734994249495,2.72469932,3451.3,3451.2,7.1037127]
[1734994254290,2.72469932,3451.3,3451.2,6.3451]
[1734994255528,2.72469932,3451.3,3451.2,6.7599]
[1734994256694,1.3472141,3451.4,3451.2,6.7599]
[1734994257038,1.3472141,3451.4,3451.3,0.55]
[1734994257210,1.3472141,3451.4,3451.3,6.3449]
[1734994258442,2.85568732,3451.4,3451.3,6.3449]
[1734994259719,1.63940692,3451.4,3451.3,6.3449]
[1734994260935,0.1309337,3451.4,3451.3,6.3449]
[1734994269425,0.1309337,3451.4,3451.3,5.7949]
[1734994270627,2.85532898,3451.4,3451.3,5.7949]
[1734994271579,1.6393754,3451.4,3451.3,5.7949]
[1734994275766,2.85629624,3451.4,3451.3,5.7949]
[1734994279094,1.6393754,3451.4,3451.3,5.7949]
[1734994281937,3.463796,3451.4,3451.3,5.7949]
[1734994285639,1.6393754,3451.4,3451.3,5.7949]
[1734994286675,3.463796,3451.4,3451.3,5.7949]
[1734994293137,1.6393754,3451.4,3451.3,5.7949]
[1734994293871,2.4426754,3451.4,3451.3,5.7949]
[1734994294072,1.6393754,3451.4,3451.3,5.7949]
[1734994294566,4.267096,3451.4,3451.3,5.7949]
[1734994295377,6.8864918,3451.4,3451.3,5.7949]
[1734994296743,4.8752362,3451.4,3451.3,5.7949]
[1734994297897,4.453931,3451.4,3451.3,5.7949]
[1734994301175,3.650631,3451.4,3451.3,5.7949]
[1734994303325,1.6393754,3451.4,3451.3,5.7949]
[1734994304913,1.6393754,3451.4,3451.3,6.2097]
[1734994305222,1.6393754,3451.4,3451.3,5.7949]
[1734994306526,4.07543753,3451.4,3451.3,5.7949]
[1734994307517,3.46636904,3451.4,3451.3,5.7949]
[1734994308285,1.6393754,3451.4,3451.3,5.7949]
[1734994308790,2.4357754,3451.4,3451.3,5.7949]
[1734994309221,4.26276904,3451.4,3451.3,5.7949]
[1734994311427,6.88643601,3451.4,3451.3,5.7949]
[1734994312481,4.87183753,3451.4,3451.3,5.7949]
[1734994313394,7.49107488,3451.4,3451.3,5.7949]
[1734994314115,6.69467488,3451.4,3451.3,5.7949]
[1734994314625,1.6393754,3451.4,3451.3,5.7949]
[1734994314999,2.4032754,3451.4,3451.3,5.7949]
[1734994315530,7.45857488,3451.4,3451.3,5.7949]
[1734994316725,4.41787388,3451.4,3451.3,5.7949]
[1734994318043,7.45857488,3451.4,3451.3,5.7949]
[1734994320059,4.41787388,3451.4,3451.3,5.7949]
[1734994321718,0.8948337,3451.4,3451.3,5.7949]
[1734994323959,4.41986997,3451.4,3451.3,5.7949]
[1734994325160,7.46492883,3451.4,3451.3,5.7949]
[1734994327455,6.85579753,3451.4,3451.3,5.7949]
[1734994328916,7.84588317,3451.4,3451.3,5.7949]
[1734994329621,8.45501447,3451.4,3451.3,5.7949]
[1734994330940,5.40995561,3451.4,3451.3,5.7949]
[1734994331966,6.41702184,3451.4,3451.3,5.7949]
[1734994332166,6.41702184,3451.4,3451.3,4.58482874]
[1734994333415,9.41702184,3451.4,3451.3,4.58482874]